fUST/lending_fUST_20250911
["ID","MTS","AMOUNT","RATE_DAILY","PERIOD"]
[384819115,1757572240709,-157.0,0.00014179,2]
[384819116,1757572240718,-157.0,0.00014179,2]
[384819117,1757572240728,-157.0,0.00014179,2]
[384819118,1757572240737,-157.20263955,0.00014179,2]
[384819119,1757572240746,-157.0,0.00014179,2]
[384819120,1757572240756,-157.0,0.00014179,2]
[384819121,1757572240848,-157.0,0.00014179,2]
[384819122,1757572240858,-157.0,0.00014179,2]
[384819123,1757572240868,-157.0,0.00014179,2]
[384819124,1757572240878,-157.0,0.00014179,2]
[384819125,1757572240888,-157.0,0.00014179,2]
[384819126,1757572240897,-157.0,0.00014179,2]
[384819127,1757572240907,-247.77503244,0.00014179,2]
[384819128,1757572240916,-157.0,0.00014179,2]
[384819129,1757572240926,-157.0,0.00014179,2]
[384819130,1757572240935,-157.0,0.00014179,2]
[384819131,1757572240945,-151.0,0.000142,2]
[384819132,1757572240954,-339.79,0.00014243,2]
[384819133,1757572240964,-500.0,0.00014245,2]
[384819134,1757572240974,-405.52426351,0.00014245,2]
[384819135,1757572240984,-408.80564935,0.00014246,2]
[384819136,1757572240994,-480.0,0.00014246,2]
[384819137,1757572241003,-480.0,0.00014246,2]
[384819138,1757572241013,-485.92528224,0.00014246,2]
[384819139,1757572241023,-449.08839042,0.00014246,2]
[384819140,1757572241032,-249.89357962,0.00014246,2]
[384819141,1757572241042,-480.0,0.00014246,2]
[384819142,1757572241051,-484.63985842,0.00014246,2]
[384819143,1757572241061,-480.0,0.00014246,2]
[384819144,1757572241070,-480.0,0.00014246,2]
[384819145,1757572241080,-481.36554501,0.00014246,2]
[384819146,1757572241090,-480.0,0.00014246,2]
[384819147,1757572241099,-484.52065582,0.00014246,2]
[384819148,1757572241108,-483.15537349,0.00014246,2]
[384819149,1757572241118,-480.0,0.00014246,2]
[384819150,1757572241127,-480.0,0.00014246,2]
[384819151,1757572241136,-480.0,0.00014246,2]
[384819152,1757572241145,-586.54946957,0.00014246,2]
[384819153,1757572241154,-480.0,0.00014246,2]
[384819154,1757572241165,-480.0,0.00014246,2]
[384819155,1757572241176,-500.08136644,0.00014246,2]
[384819156,1757572241185,-480.0,0.00014246,2]
[384819157,1757572241194,-480.0,0.00014246,2]
[384819158,1757572241203,-480.0,0.00014246,2]
[384819159,1757572241213,-482.52917484,0.00014246,2]
[384819160,1757572241222,-480.0,0.00014246,2]
[384819161,1757572241231,-480.0,0.00014246,2]
[384819162,1757572241241,-401.64618975,0.00014246,2]
[384819163,1757572241250,-480.0,0.00014246,2]
[384819164,1757572241259,-480.0,0.00014246,2]
[384819165,1757572241268,-480.0,0.00014246,2]
[384819166,1757572241278,-348.37685643,0.00014246,2]
[384819167,1757572241289,-480.0,0.00014246,2]
[384819168,1757572241299,-480.0,0.00014246,2]
[384819169,1757572241308,-1164.99,0.00014246,2]
[384819170,1757572241318,-517.00166691,0.00014246,2]
[384819171,1757572241328,-480.0,0.00014246,2]
[384819172,1757572241338,-480.0,0.00014246,2]
[384819173,1757572241347,-480.0,0.00014246,2]
[384819174,1757572241357,-491.99261058,0.00014246,2]
[384819175,1757572241367,-433.04446702,0.00014246,2]
[384819176,1757572241378,-480.0,0.00014246,2]
[384819177,1757572241389,-480.0,0.00014246,2]
[384819178,1757572241400,-482.60641857,0.00014246,2]
[384819179,1757572241410,-480.0,0.00014246,2]
[384819180,1757572241419,-485.37773383,0.00014246,2]
[384819181,1757572241428,-480.0,0.00014246,2]
[384819182,1757572241438,-483.99356591,0.00014246,2]
[384819183,1757572241447,-480.0,0.00014246,2]
[384819184,1757572241457,-480.0,0.00014246,2]
[384819185,1757572241467,-488.13084571,0.00014246,2]
[384819186,1757572241477,-480.0,0.00014246,2]
[384819187,1757572241486,-480.0,0.00014246,2]
[384819188,1757572241495,-480.0,0.00014246,2]
[384819189,1757572241504,-485.42015146,0.00014246,2]
[384819190,1757572241513,-492.7602882,0.00014246,2]
[384819191,1757572241523,-480.0,0.00014246,2]
[384819192,1757572241532,-480.0,0.00014246,2]
[384819193,1757572241541,-603.93239308,0.00014246,2]
[384819194,1757572241551,-469.34468138,0.00014246,2]
[384819195,1757572241561,-480.0,0.00014246,2]
[384819196,1757572241571,-431.80786942,0.00014246,2]
[384819197,1757572241580,-480.0,0.00014246,2]
[384819198,1757572241590,-480.0,0.00014246,2]
[384819199,1757572241599,-480.0,0.00014246,2]
[384819200,1757572241608,-480.0,0.00014246,2]
[384819201,1757572241617,-480.0,0.00014246,2]
[384819202,1757572241627,-480.0,0.00014246,2]
[384819203,1757572241635,-482.61,0.00014246,2]
[384819204,1757572241644,-447.57696599,0.00014246,2]
[384819205,1757572241655,-480.0,0.00014246,2]
[384819206,1757572241664,-485.99905255,0.00014246,2]
[384819207,1757572241673,-495.17750735,0.00014246,2]
[384819208,1757572241682,-480.0,0.00014246,2]
[384819209,1757572241691,-480.0,0.00014246,2]
[384819210,1757572241701,-523.02324956,0.00014246,2]
[384819211,1757572241711,-480.0,0.00014246,2]
[384819212,1757572241720,-480.0,0.00014246,2]
[384819213,1757572241729,-480.0,0.00014246,2]
[384819214,1757572241738,-480.0,0.00014246,2]
[384819215,1757572241748,-485.57307372,0.00014246,2]
[384819216,1757572241758,-2160.88,0.00014246,2]
[384819217,1757572241768,-480.0,0.00014246,2]
[384819218,1757572241778,-480.0,0.00014246,2]
[384819219,1757572241787,-480.0,0.00014246,2]
[384819220,1757572241797,-2826.24,0.00014246,2]
[384819221,1757572241806,-480.0,0.00014246,2]
[384819222,1757572241815,-480.0,0.00014246,2]
[384819223,1757572241825,-480.0,0.00014246,2]
[384819224,1757572241834,-480.0,0.00014246,2]
[384819225,1757572241844,-480.0,0.00014246,2]
[384819226,1757572241853,-480.0,0.00014246,2]
[384819227,1757572241863,-480.0,0.00014246,2]
[384819228,1757572241872,-480.0,0.00014246,2]
[384819229,1757572241881,-480.0,0.00014246,2]
[384819230,1757572241890,-480.0,0.00014246,2]
[384819231,1757572241900,-480.0,0.00014246,2]
[384819232,1757572241909,-480.0,0.00014246,2]
[384819233,1757572241918,-965.33,0.00014246,2]
[384819234,1757572241927,-480.0,0.00014246,2]
[384819235,1757572241937,-480.0,0.00014246,2]
[384819236,1757572241946,-480.0,0.00014246,2]
[384819237,1757572241955,-480.0,0.00014246,2]
[384819238,1757572241965,-674.4,0.00014246,2]
[384819239,1757572241974,-480.0,0.00014246,2]
[384819240,1757572241983,-302.0,0.00014246,2]
[384819241,1757572241992,-480.0,0.00014246,2]
[384819242,1757572242002,-480.0,0.00014246,2]
[384819243,1757572242012,-480.0,0.00014246,2]
[384819244,1757572242021,-480.0,0.00014246,2]
[384819245,1757572242030,-1006.35,0.00014246,2]
[384819246,1757572242039,-480.0,0.00014246,2]
[384819247,1757572242048,-480.0,0.00014246,2]
[384819248,1757572242057,-151.954609,0.00014246,2]
[384819249,1757572242067,-151.0,0.00014246,2]
[384819250,1757572242076,-151.0,0.00014246,2]
[384819251,1757572242086,-151.0,0.00014246,2]
[384819252,1757572242096,-480.0,0.00014246,2]
[384819253,1757572242105,-151.0,0.00014246,2]
[384819254,1757572242115,-151.0,0.00014246,2]
[384819255,1757572242124,-151.0,0.00014246,2]
[384819256,1757572242133,-151.0,0.00014246,2]
[384819257,1757572242142,-151.0,0.00014246,2]
[384819258,1757572242152,-480.0,0.00014246,2]
[384819259,1757572242161,-480.0,0.00014246,2]
[384819260,1757572242170,-480.0,0.00014246,2]
[384819261,1757572242179,-390.096317,0.00014246,2]
[384819262,1757572242189,-390.096317,0.00014246,2]
[384819263,1757572242198,-480.0,0.00014246,2]
[384819264,1757572242208,-390.096317,0.00014246,2]
[384819265,1757572242218,-390.096317,0.00014246,2]
[384819266,1757572242228,-151.753326,0.00014246,2]
[384819267,1757572242237,-480.0,0.00014246,2]
[384819268,1757572242247,-306.453893,0.00014246,2]
[384819269,1757572242257,-306.453893,0.00014246,2]
[384819270,1757572242266,-306.453893,0.00014246,2]
[384819271,1757572242276,-306.453893,0.00014246,2]
[384819272,1757572242287,-480.0,0.00014246,2]
[384819273,1757572242297,-151.0,0.00014246,2]
[384819274,1757572242307,-151.0,0.00014246,2]
[384819275,1757572242316,-480.0,0.00014246,2]
[384819276,1757572242325,-151.0,0.00014246,2]
[384819277,1757572242335,-4332.2,0.00014246,2]
[384819278,1757572242344,-151.0,0.00014246,2]
[384819279,1757572242353,-525.42,0.00014246,2]
[384819280,1757572242363,-151.0,0.00014246,2]
[384819281,1757572242372,-480.0,0.00014246,2]
[384819282,1757572242381,-151.0,0.00014246,2]
[384819283,1757572242393,-237.654785,0.00014246,2]
[384819284,1757572242403,-480.0,0.00014246,2]
[384819285,1757572242412,-787.0,0.00014246,2]
[384819286,1757572242421,-480.0,0.00014246,2]
[384819287,1757572242431,-423.89523,0.00014246,2]
[384819288,1757572242440,-423.89523,0.00014246,2]
[384819289,1757572242449,-423.89523,0.00014246,2]
[384819290,1757572242460,-628.26,0.00014246,2]
[384819291,1757572242470,-423.89523,0.00014246,2]
[384819292,1757572242480,-479.25173635,0.00014246,2]
[384819293,1757572242490,-151.318523,0.00014246,2]
[384819294,1757572242500,-480.0,0.00014246,2]
[384819295,1757572242510,-467.25,0.00014246,2]
[384819296,1757572242519,-480.0,0.00014246,2]
[384819297,1757572242529,-480.0,0.00014246,2]
[384819298,1757572242538,-480.0,0.00014246,2]
[384819299,1757572242548,-480.0,0.00014246,2]
[384819300,1757572242557,-484.9879967,0.00014246,2]
[384819301,1757572242567,-3320.6,0.00014246,2]
[384819302,1757572242576,-151.0,0.00014246,2]
[384819303,1757572242585,-480.0,0.00014246,2]
[384819304,1757572242594,-480.0,0.00014246,2]
[384819305,1757572242604,-480.0,0.00014246,2]
[384819306,1757572242613,-480.0,0.00014246,2]
[384819307,1757572242622,-220.134267,0.00014246,2]
[384819308,1757572242632,-220.134267,0.00014246,2]
[384819309,1757572242641,-220.134267,0.00014246,2]
[384819310,1757572242651,-220.134267,0.00014246,2]
[384819311,1757572242660,-480.0,0.00014246,2]
[384819312,1757572242749,-480.0,0.00014246,2]
[384819313,1757572242759,-480.0,0.00014246,2]
[384819314,1757572242776,-504.86977798,0.00014246,2]
[384819315,1757572242791,-300.0,0.00014249,2]
[384819316,1757572242801,-300.0,0.00014249,2]
[384819317,1757572242811,-300.0,0.00014249,2]
[384819318,1757572242821,-300.0,0.00014249,2]
[384819319,1757572242830,-300.0,0.00014249,2]
[384819320,1757572242841,-300.0,0.00014249,2]
[384819321,1757572242850,-300.0,0.00014249,2]
[384819322,1757572242860,-300.0,0.00014249,2]
[384819323,1757572242870,-300.0,0.00014249,2]
[384819324,1757572242880,-300.0,0.00014249,2]
[384819325,1757572242890,-300.0,0.00014249,2]
[384819326,1757572242901,-300.0,0.00014249,2]
[384819327,1757572242911,-300.0,0.00014249,2]
[384819328,1757572242921,-300.0,0.00014249,2]
[384819329,1757572242931,-300.0,0.00014249,2]
[384819330,1757572242940,-600.0,0.0001425,2]
[384819331,1757572242950,-151.0,0.000143,2]
[384819332,1757572242959,-151.0,0.000143,2]
[384819333,1757572242969,-151.0,0.000144,2]
[384819334,1757572242978,-500.0,0.00014453,2]
[384819335,1757572242988,-157.0,0.00014453,2]
[384819336,1757572242997,-157.0,0.00014453,2]
[384819337,1757572243007,-157.0,0.00014453,2]
[384819338,1757572243017,-205.57504218,0.00014453,2]
[384819339,1757572243027,-157.0,0.00014453,2]
[384819340,1757572243036,-157.0,0.00014453,2]
[384819341,1757572243046,-157.0,0.00014453,2]
[384819342,1757572243055,-164.24058408,0.00014453,2]
[384819343,1757572243065,-157.0,0.00014453,2]
[384819344,1757572243075,-180.0,0.00014453,2]
[384819345,1757572243085,-157.0,0.00014453,2]
[384819346,1757572243095,-157.0,0.00014453,2]
[384819347,1757572243104,-157.0,0.00014453,2]
[384819348,1757572243114,-157.0,0.00014453,2]
[384819349,1757572243124,-173.67,0.00014453,2]
[384819350,1757572243133,-151.0,0.000145,2]
[384819351,1757572243142,-480.0,0.0001452,2]
[384819352,1757572243152,-480.0,0.0001452,2]
[384819353,1757572243161,-480.0,0.0001452,2]
[384819354,1757572243171,-480.0,0.0001452,2]
[384819355,1757572243181,-455.44626382,0.0001452,2]
[384819356,1757572243190,-482.75893996,0.0001452,2]
[384819357,1757572243199,-540.41864426,0.0001452,2]
[384819358,1757572243209,-486.9194041,0.0001452,2]
[384819359,1757572243218,-480.0,0.0001452,2]
[384819360,1757572243228,-489.35930241,0.0001452,2]
[384819361,1757572243238,-484.03093063,0.0001452,2]
[384819363,1757572243247,-177.66,0.0001452,2]
[384819365,1757572243257,-480.0,0.0001452,2]
[384819367,1757572243267,-234.5149553,0.0001452,2]
[384819369,1757572243277,-480.0,0.0001452,2]
[384819371,1757572243286,-480.0,0.0001452,2]
[384819373,1757572243295,-1164.99,0.0001452,2]
[384819374,1757572243307,-480.0,0.0001452,2]
[384819375,1757572243317,-480.0,0.0001452,2]
[384819376,1757572243326,-480.0,0.0001452,2]
[384819377,1757572243335,-151.0,0.0001452,2]
[384819378,1757572243344,-480.0,0.0001452,2]
[384819379,1757572243354,-151.0,0.0001452,2]
[384819380,1757572243364,-151.0,0.0001452,2]
[384819381,1757572243374,-151.0,0.0001452,2]
[384819382,1757572243385,-151.0,0.0001452,2]
[384819383,1757572243399,-151.0,0.0001452,2]
[384819384,1757572243408,-341.609263,0.0001452,2]
[384819385,1757572243418,-341.609263,0.0001452,2]
[384819386,1757572243429,-341.609263,0.0001452,2]
[384819387,1757572243438,-151.0,0.0001452,2]
[384819388,1757572243447,-341.609263,0.0001452,2]
[384819389,1757572243456,-151.0,0.0001452,2]
[384819390,1757572243465,-151.0,0.0001452,2]
[384819391,1757572243476,-151.0,0.0001452,2]
[384819392,1757572243486,-151.0,0.0001452,2]
[384819393,1757572243495,-151.0,0.0001452,2]
[384819394,1757572243505,-480.0,0.0001452,2]
[384819395,1757572243514,-151.0,0.0001452,2]
[384819396,1757572243524,-362.54959105,0.0001452,2]
[384819397,1757572243533,-496.62725519,0.0001452,2]
[384819398,1757572243543,-480.0,0.0001452,2]
[384819399,1757572243552,-485.5821827,0.0001452,2]
[384819400,1757572243561,-151.0,0.0001452,2]
[384819401,1757572243571,-480.0,0.0001452,2]
[384819402,1757572243580,-151.0,0.0001452,2]
[384819403,1757572243590,-252.213303,0.0001452,2]
[384819404,1757572243600,-252.213303,0.0001452,2]
[384819405,1757572243610,-252.213303,0.0001452,2]
[384819406,1757572243619,-151.0,0.0001452,2]
[384819407,1757572243629,-252.213303,0.0001452,2]
[384819408,1757572243642,-151.0,0.0001452,2]
[384819409,1757572243652,-480.0,0.0001452,2]
[384819410,1757572243661,-480.0,0.0001452,2]
[384819411,1757572243670,-330.14,0.0001452,2]
[384819412,1757572243680,-151.0,0.0001452,2]
[384819413,1757572243689,-180.25,0.0001452,2]
[384819414,1757572243698,-151.0,0.0001452,2]
[384819415,1757572243707,-151.882666,0.0001452,2]
[384819416,1757572243717,-482.99080046,0.0001452,2]
[384819417,1757572243726,-151.448589,0.0001452,2]
[384819418,1757572243735,-480.0,0.0001452,2]
[384819419,1757572243744,-480.0,0.0001452,2]
[384819420,1757572243754,-482.61,0.0001452,2]
[384819421,1757572243764,-151.0,0.0001452,2]
[384819422,1757572243773,-480.0,0.0001452,2]
[384819423,1757572243782,-151.0,0.0001452,2]
[384819424,1757572243792,-151.0,0.0001452,2]
[384819425,1757572243801,-151.0,0.0001452,2]
[384819426,1757572243811,-151.0,0.0001452,2]
[384819427,1757572243820,-151.0,0.0001452,2]
[384819428,1757572243830,-151.0,0.0001452,2]
[384819429,1757572243839,-151.0,0.0001452,2]
[384819430,1757572243849,-151.0,0.0001452,2]
[384819431,1757572243858,-151.0,0.0001452,2]
[384819432,1757572243868,-480.0,0.0001452,2]
[384819433,1757572243878,-480.0,0.0001452,2]
[384819434,1757572243887,-438.1598497,0.0001452,2]
[384819435,1757572243898,-200.176203,0.0001452,2]
[384819436,1757572243908,-293.016291,0.0001452,2]
[384819437,1757572243918,-200.176203,0.0001452,2]
[384819438,1757572243927,-293.016291,0.0001452,2]
[384819439,1757572243937,-200.176203,0.0001452,2]
[384819440,1757572243946,-293.016291,0.0001452,2]
[384819441,1757572243956,-200.176203,0.0001452,2]
[384819442,1757572243965,-293.016291,0.0001452,2]
[384819443,1757572243975,-602.31,0.0001452,2]
[384819444,1757572243984,-151.0,0.0001452,2]
[384819445,1757572243993,-2160.88,0.0001452,2]
[384819446,1757572244002,-480.0,0.0001452,2]
[384819447,1757572244012,-2826.24,0.0001452,2]
[384819448,1757572244021,-490.98460683,0.0001452,2]
[384819449,1757572244031,-609.42970449,0.0001452,2]
[384819450,1757572244041,-152.084447,0.0001452,2]
[384819451,1757572244050,-480.0,0.0001452,2]
[384819452,1757572244060,-480.0,0.0001452,2]
[384819453,1757572244071,-173.25523764,0.0001452,2]
[384819454,1757572244080,-480.0,0.0001452,2]
[384819455,1757572244089,-215.82688,0.0001452,2]
[384819456,1757572244099,-480.0,0.0001452,2]
[384819457,1757572244109,-151.0,0.0001452,2]
[384819458,1757572244118,-193.64,0.0001452,2]
[384819459,1757572244128,-480.0,0.0001452,2]
[384819460,1757572244138,-480.0,0.0001452,2]
[384819461,1757572244147,-965.33,0.0001452,2]
[384819462,1757572244157,-152.8778251,0.0001452,2]
[384819463,1757572244168,-480.0,0.0001452,2]
[384819464,1757572244178,-674.4,0.0001452,2]
[384819465,1757572244187,-278.14,0.0001452,2]
[384819466,1757572244197,-365.0,0.0001452,2]
[384819467,1757572244207,-151.0,0.0001452,2]
[384819468,1757572244217,-480.0,0.0001452,2]
[384819469,1757572244228,-1257.695416,0.0001452,2]
[384819470,1757572244237,-1257.695416,0.0001452,2]
[384819471,1757572244247,-1257.695416,0.0001452,2]
[384819472,1757572244256,-1257.695416,0.0001452,2]
[384819473,1757572244266,-480.0,0.0001452,2]
[384819474,1757572244276,-1006.35,0.0001452,2]
[384819475,1757572244286,-480.0,0.0001452,2]
[384819476,1757572244295,-480.0,0.0001452,2]
[384819477,1757572244305,-480.0,0.0001452,2]
[384819478,1757572244315,-336.91,0.0001452,2]
[384819479,1757572244324,-481.9934786,0.0001452,2]
[384819480,1757572244333,-283.73591756,0.0001452,2]
[384819481,1757572244343,-480.0,0.0001452,2]
[384819482,1757572244352,-4332.2,0.0001452,2]
[384819483,1757572244363,-525.42,0.0001452,2]
[384819484,1757572244372,-494.87028104,0.0001452,2]
[384819485,1757572244382,-480.0,0.0001452,2]
[384819486,1757572244391,-787.0,0.0001452,2]
[384819487,1757572244402,-480.0,0.0001452,2]
[384819488,1757572244413,-480.0,0.0001452,2]
[384819489,1757572244424,-480.0,0.0001452,2]
[384819490,1757572244434,-3320.6,0.0001452,2]
[384819491,1757572244443,-480.0,0.0001452,2]
[384819492,1757572244453,-480.0,0.0001452,2]
[384819493,1757572244543,-496.30420358,0.0001452,2]
[384819494,1757572244554,-480.0,0.0001452,2]
[384819495,1757572244564,-500.88790755,0.00014521,2]
[384819496,1757572244574,-1000.0,0.00014521,2]
[384819497,1757572244584,-1004.15667014,0.00014521,2]
[384819498,1757572244594,-502.30528819,0.00014521,2]
[384819499,1757572244603,-501.45101962,0.00014521,2]
[384819500,1757572244613,-1003.49835,0.00014521,2]
[384819501,1757572244623,-324.28321046,0.00014521,2]
[384819502,1757572244633,-501.95754405,0.00014521,2]
[384819503,1757572244642,-1000.0,0.00014521,2]
[384819504,1757572244651,-1000.0,0.00014521,2]
[384819505,1757572244661,-1000.0,0.00014521,2]
[384819506,1757572244671,-1000.0,0.00014521,2]
[384819507,1757572244680,-1000.0,0.00014521,2]
[384819508,1757572244690,-1000.0,0.00014521,2]
[384819509,1757572244700,-1000.0,0.00014521,2]
[384819510,1757572244709,-1000.0,0.00014521,2]
[384819511,1757572244719,-1000.0,0.00014521,2]
[384819512,1757572244729,-500.0,0.00014525,2]
[384819513,1757572244739,-550.94826007,0.00014525,2]
[384819514,1757572244748,-252.64816293,0.00014552,2]
[384819515,1757572244758,-500.0,0.00014557,2]
[384819516,1757572244769,-151.0,0.000146,2]
[384819517,1757572244778,-1006.97,0.00014625,2]
[384819518,1757572244788,-634.0,0.00014625,2]
[384819519,1757572244797,-2154.0,0.00014625,2]
[384819520,1757572244807,-409.0,0.00014625,2]
[384819521,1757572244817,-500.0,0.00014725,2]
[384819522,1757572244827,-500.0,0.00014725,2]
[384819523,1757572244837,-500.0,0.00014727,2]
[384819524,1757572244846,-186.0,0.00014727,2]
[384819525,1757572244856,-157.0,0.00014727,2]
[384819526,1757572244866,-158.31206507,0.00014727,2]
[384819527,1757572244875,-176.58173941,0.00014727,2]
[384819528,1757572244885,-157.0,0.00014727,2]
[384819529,1757572244895,-180.0,0.00014727,2]
[384819530,1757572244906,-302.0,0.00014727,2]
[384819531,1757572244916,-268.65618874,0.00014727,2]
[384819532,1757572244925,-282.58799711,0.00014727,2]
[384819533,1757572244935,-157.0,0.00014727,2]
[384819534,1757572244944,-480.0,0.00014794,2]
[384819535,1757572244962,-480.0,0.00014794,2]
[384819536,1757572244972,-151.0,0.00014794,2]
[384819537,1757572244982,-151.0,0.00014794,2]
[384819538,1757572244992,-151.0,0.00014794,2]
[384819539,1757572245002,-151.0,0.00014794,2]
[384819540,1757572245012,-151.0,0.00014794,2]
[384819541,1757572245022,-151.0,0.00014794,2]
[384819542,1757572245032,-151.0,0.00014794,2]
[384819543,1757572245042,-151.0,0.00014794,2]
[384819544,1757572245052,-151.0,0.00014794,2]
[384819545,1757572245062,-151.0,0.00014794,2]
[384819546,1757572245072,-251.694711,0.00014794,2]
[384819547,1757572245082,-151.0,0.00014794,2]
[384819548,1757572245092,-151.0,0.00014794,2]
[384819549,1757572245102,-151.0,0.00014794,2]
[384819550,1757572245112,-443.85,0.00014794,2]
[384819551,1757572245122,-369.74203454,0.00014794,2]
[384819552,1757572245131,-417.53000515,0.00014794,2]
[384819553,1757572245141,-151.0,0.00014794,2]
[384819554,1757572245151,-1164.99,0.00014794,2]
[384819555,1757572245162,-151.0,0.00014794,2]
[384819556,1757572245171,-151.0,0.00014794,2]
[384819557,1757572245180,-151.957432,0.00014794,2]
[384819558,1757572245190,-151.0,0.00014794,2]
[384819559,1757572245201,-151.78865,0.00014794,2]
[384819560,1757572245210,-480.0,0.00014794,2]
[384819561,1757572245220,-480.0,0.00014794,2]
[384819562,1757572245230,-151.0,0.00014794,2]
[384819563,1757572245240,-151.0,0.00014794,2]
[384819564,1757572245249,-151.0,0.00014794,2]
[384819565,1757572245259,-480.0,0.00014794,2]
[384819566,1757572245268,-480.0,0.00014794,2]
[384819567,1757572245278,-480.0,0.00014794,2]
[384819568,1757572245287,-524.58502884,0.00014794,2]
[384819569,1757572245296,-283.2,0.00014794,2]
[384819570,1757572245305,-482.61,0.00014794,2]
[384819571,1757572245314,-480.0,0.00014794,2]
[384819572,1757572245324,-2160.88,0.00014794,2]
[384819573,1757572245333,-480.0,0.00014794,2]
[384819574,1757572245342,-2826.24,0.00014794,2]
[384819575,1757572245351,-480.0,0.00014794,2]
[384819576,1757572245361,-480.0,0.00014794,2]
[384819577,1757572245370,-480.0,0.00014794,2]
[384819578,1757572245379,-480.0,0.00014794,2]
[384819579,1757572245389,-480.0,0.00014794,2]
[384819580,1757572245398,-965.33,0.00014794,2]
[384819581,1757572245407,-480.0,0.00014794,2]
[384819582,1757572245419,-674.4,0.00014794,2]
[384819583,1757572245428,-1006.35,0.00014794,2]
[384819584,1757572245438,-480.0,0.00014794,2]
[384819585,1757572245447,-480.0,0.00014794,2]
[384819586,1757572245457,-480.0,0.00014794,2]
[384819587,1757572245466,-4332.2,0.00014794,2]
[384819588,1757572245475,-525.42,0.00014794,2]
[384819589,1757572245484,-480.0,0.00014794,2]
[384819590,1757572245493,-787.0,0.00014794,2]
[384819591,1757572245503,-480.0,0.00014794,2]
[384819592,1757572245513,-3320.6,0.00014794,2]
[384819593,1757572245523,-480.0,0.00014794,2]
[384819594,1757572245532,-607.61,0.00014794,2]
[384819595,1757572245541,-151.0,0.000148,2]
[384819596,1757572245551,-2485.90070892,0.000149,2]
[384819597,1757572245559,-151.0,0.000149,2]
[384819598,1757572245569,-168.0,0.00014918,2]
[384819599,1757572245579,-794.5,0.00014922,2]
[384819600,1757572245588,-178.85346485,0.00014922,2]
[384819601,1757572245597,-500.0,0.00015001,2]
[384819602,1757572245606,-180.91168149,0.00015001,2]
[384819603,1757572245615,-157.0,0.00015001,2]
[384819604,1757572245625,-186.0,0.00015001,2]
[384819605,1757572245634,-480.0,0.00015068,2]
[384819606,1757572245644,-480.0,0.00015068,2]
[384819607,1757572245653,-151.0,0.00015068,2]
[384819608,1757572245662,-151.0,0.00015068,2]
[384819609,1757572245671,-151.0,0.00015068,2]
[384819610,1757572245681,-151.0,0.00015068,2]
[384819611,1757572245690,-151.0,0.00015068,2]
[384819612,1757572245699,-151.0,0.00015068,2]
[384819613,1757572245709,-151.0,0.00015068,2]
[384819614,1757572245718,-1164.99,0.00015068,2]
[384819615,1757572245727,-480.0,0.00015068,2]
[384819616,1757572245736,-480.0,0.00015068,2]
[384819617,1757572245745,-482.61,0.00015068,2]
[384819618,1757572245755,-480.0,0.00015068,2]
[384819619,1757572245764,-2160.88,0.00015068,2]
[384819620,1757572245773,-480.0,0.00015068,2]